fUSD/lending_fUSD_20250812
["ID","MTS","AMOUNT","RATE_DAILY","PERIOD"]
[378820172,1755036638348,-404.76812533,0.000488,120]
[378820173,1755036638357,-309.9,0.00048852,30]
[378820174,1755036638367,-3009.56058638,0.0004897,15]
[378820175,1755036638376,-200.0,0.00049,120]
[378820176,1755036638386,-17914.76803094,0.00049,7]
[378820177,1755036638395,-457.56915227,0.00049,7]
[378820178,1755036638405,-211.77135896,0.00049,7]
[378820179,1755036638414,-171.67544544,0.00049105,28]
[378820180,1755036638424,-162.13954209,0.00049195,15]
[378820181,1755036638433,-1321.28032008,0.00049195,21]
[378820182,1755036638442,-2455.15177595,0.00049195,15]
[378820183,1755036638453,-1349.66835621,0.00049195,15]
[378820184,1755036638462,-1000.0,0.000492,120]
[378820185,1755036638472,-881.63378505,0.00049205,4]
[378820186,1755036638483,-1603.28343883,0.00049205,4]
[378820187,1755036638498,-1210.53981084,0.00049205,4]
[378820188,1755036638535,-36710.29824128,0.00049205,4]
[378820189,1755036638544,-5000.0,0.00049205,120]
[378820190,1755036638554,-150.72462576,0.00049214,27]
[378820191,1755036638564,-207.19088478,0.00049215,35]
[378820192,1755036638574,-1496.7349502,0.00049215,120]
[378820202,1755036640307,-536.86544426,0.00049215,120]
[378820203,1755036640318,-2311.71497188,0.00049215,120]
[378820204,1755036640334,-3157.45824893,0.00049215,120]
[378820205,1755036640345,-10565.70614085,0.00049215,120]
[378820206,1755036640357,-25961.48385915,0.00049215,120]
[378820207,1755036640409,-11989.0,0.00049215,120]
[378820208,1755036640605,-347.9600001,0.00049215,120]
[378820238,1755036643349,-151.0,0.00047195,15]
[378820239,1755036643358,-151.0,0.00047195,15]
[378820240,1755036643370,-1294.55534313,0.00049215,120]
[378820241,1755036643541,-31226.5210415,0.00049215,120]
[378820242,1755036643551,-3009.56058638,0.0004924,15]
[378820243,1755036643560,-88892.6616072,0.00049295,4]
[378820244,1755036643569,-1888.0,0.000493,120]
[378820245,1755036643579,-113136.114773,0.00049305,4]
[378820246,1755036643588,-220985.867939,0.00049305,4]
[378820247,1755036643598,-300.0,0.00049314,30]
[378820248,1755036643608,-400.0,0.00049314,120]
[378820249,1755036643617,-400.0,0.00049315,120]
[378820250,1755036643627,-400.0,0.00049315,2]
[378820251,1755036643636,-333.65625,0.00049315,120]
[378820252,1755036643645,-400.0,0.00049315,120]
[378820253,1755036643656,-415.49,0.00049315,120]
[378820254,1755036643666,-400.0,0.00049315,120]
[378820255,1755036643675,-400.0,0.00049315,120]
[378820256,1755036643684,-400.0,0.00049315,120]
[378820257,1755036643694,-400.0,0.00049315,120]
[378820258,1755036643703,-400.0,0.00049315,120]
[378820259,1755036643712,-400.0,0.00049315,120]
[378820260,1755036643721,-400.0,0.00049315,120]
[378820261,1755036643731,-336.16576768,0.00049315,120]
[378820262,1755036643741,-400.0,0.00049315,120]
[378820263,1755036643751,-404.28759716,0.00049315,120]
[378820265,1755036643760,-400.0,0.00049315,120]
[378820266,1755036643769,-400.0,0.00049315,120]
[378820267,1755036643778,-400.0,0.00049315,120]
[378820268,1755036643787,-303.26145059,0.00049315,120]
[378820269,1755036643796,-400.0,0.00049315,120]
[378820270,1755036643806,-526.05,0.00049315,120]
[378820271,1755036643816,-400.0,0.00049315,120]
[378820272,1755036643825,-400.0,0.00049315,120]
[378820273,1755036643834,-400.0,0.00049315,120]
[378820274,1755036643843,-400.0,0.00049315,120]
[378820275,1755036643853,-180.0,0.00049315,120]
[378820276,1755036643862,-400.0,0.00049315,120]
[378820277,1755036643872,-423.27,0.00049315,120]
[378820278,1755036643881,-400.0,0.00049315,120]
[378820279,1755036643891,-400.0,0.00049315,120]
[378820280,1755036643900,-400.0,0.00049315,120]
[378820283,1755036644134,-400.0,0.00049315,120]
[378820287,1755036644163,-400.0,0.00049315,120]
[378820289,1755036644173,-400.0,0.00049315,120]
[378820291,1755036644182,-400.0,0.00049315,120]
[378820294,1755036644192,-400.0,0.00049315,120]
[378820296,1755036644202,-400.0,0.00049315,120]
[378820298,1755036644211,-400.0,0.00049315,120]
[378820300,1755036644221,-400.0,0.00049315,120]
[378820302,1755036644231,-400.0,0.00049315,120]
[378820304,1755036644240,-400.0,0.00049315,120]
[378820306,1755036644249,-400.0,0.00049315,120]
[378820308,1755036644259,-400.0,0.00049315,120]
[378820310,1755036644268,-400.0,0.00049315,120]
[378820312,1755036644278,-400.0,0.00049315,120]
[378820314,1755036644288,-400.0,0.00049315,120]
[378820316,1755036644297,-400.0,0.00049315,120]
[378820318,1755036644307,-400.0,0.00049315,120]
[378820320,1755036644317,-400.0,0.00049315,120]
[378820322,1755036644331,-400.0,0.00049315,120]
[378820324,1755036644341,-400.0,0.00049315,120]
[378820326,1755036644350,-400.0,0.00049315,120]
[378820328,1755036644360,-400.0,0.00049315,120]
[378820330,1755036644371,-400.0,0.00049315,120]
[378820332,1755036644380,-400.0,0.00049315,120]
[378820334,1755036644389,-400.0,0.00049315,120]
[378820336,1755036644400,-400.0,0.00049315,120]
[378820338,1755036644409,-400.0,0.00049315,120]
[378820340,1755036644418,-400.0,0.00049315,120]
[378820342,1755036644428,-400.0,0.00049315,120]
[378820344,1755036644437,-400.0,0.00049315,120]
[378820346,1755036644447,-400.0,0.00049315,120]
[378820348,1755036644456,-400.0,0.00049315,120]
[378820349,1755036644465,-400.0,0.00049315,120]
[378820350,1755036644474,-446.98,0.00049315,120]
[378820351,1755036644484,-492.24037394,0.00049315,120]
[378820352,1755036644494,-400.0,0.00049315,120]
[378820353,1755036644503,-400.0,0.00049315,120]
[378820354,1755036644512,-400.0,0.00049315,120]
[378820355,1755036644522,-400.0,0.00049315,120]
[378820356,1755036644531,-369.62733448,0.00049315,120]
[378820357,1755036644541,-400.0,0.00049315,120]
[378820358,1755036644552,-400.0,0.00049315,120]
[378820359,1755036644561,-400.0,0.00049315,120]
[378820360,1755036644571,-400.0,0.00049315,120]
[378820361,1755036644581,-400.0,0.00049315,120]
[378820362,1755036644590,-400.0,0.00049315,120]
[378820363,1755036644599,-400.0,0.00049315,120]
[378820364,1755036644609,-400.0,0.00049315,120]
[378820365,1755036644618,-400.0,0.00049315,120]
[378820366,1755036644628,-400.0,0.00049315,120]
[378820367,1755036644637,-400.0,0.00049315,120]
[378820368,1755036644646,-400.0,0.00049315,120]
[378820369,1755036644655,-191.20713985,0.00049315,120]
[378820370,1755036644665,-400.0,0.00049315,120]
[378820371,1755036644674,-400.0,0.00049315,120]
[378820372,1755036644684,-527.96,0.00049315,120]
[378820373,1755036644694,-300.0,0.00049315,120]
[378820375,1755036644703,-400.0,0.00049315,120]
[378820377,1755036644712,-400.0,0.00049315,120]
[378820379,1755036644721,-400.0,0.00049315,120]
[378820380,1755036644731,-400.0,0.00049315,120]
[378820381,1755036644740,-400.0,0.00049315,120]
[378820382,1755036644749,-400.0,0.00049315,120]
[378820383,1755036644759,-400.0,0.00049315,120]
[378820384,1755036644771,-384.65946422,0.00049315,120]
[378820385,1755036644781,-400.0,0.00049315,120]
[378820386,1755036644790,-760.81,0.00049315,120]
[378820387,1755036644800,-400.0,0.00049315,120]
[378820388,1755036644809,-400.0,0.00049315,120]
[378820389,1755036644818,-400.0,0.00049315,120]
[378820390,1755036644827,-912.34,0.00049315,120]
[378820391,1755036644837,-400.0,0.00049315,120]
[378820392,1755036644847,-527.64,0.00049315,120]
[378820393,1755036644856,-400.0,0.00049315,120]
[378820394,1755036644865,-400.0,0.00049315,120]
[378820395,1755036644874,-400.0,0.00049315,120]
[378820396,1755036644884,-555.64,0.00049315,120]
[378820397,1755036644893,-400.0,0.00049315,120]
[378820398,1755036644903,-400.0,0.00049315,120]
[378820399,1755036644912,-400.0,0.00049315,120]
[378820400,1755036644922,-215.19349439,0.00049315,120]
[378820401,1755036644931,-400.0,0.00049315,120]
[378820402,1755036644940,-400.0,0.00049315,120]
[378820403,1755036644950,-400.0,0.00049315,120]
[378820404,1755036644960,-400.0,0.00049315,120]
[378820405,1755036644969,-406.36,0.00049315,120]
[378820406,1755036644979,-197.10231502,0.00049315,120]
[378820407,1755036644988,-400.0,0.00049315,120]
[378820408,1755036644997,-469.03,0.00049315,120]
[378820409,1755036645006,-400.0,0.00049315,120]
[378820410,1755036645015,-520.96,0.00049315,120]
[378820411,1755036645025,-400.0,0.00049315,120]
[378820412,1755036645037,-400.0,0.00049315,120]
[378820413,1755036645046,-400.0,0.00049315,120]
[378820414,1755036645056,-400.0,0.00049315,120]
[378820415,1755036645066,-180.0,0.00049315,120]
[378820416,1755036645076,-400.0,0.00049315,120]
[378820417,1755036645086,-400.0,0.00049315,120]
[378820418,1755036645095,-400.0,0.00049315,120]
[378820419,1755036645104,-436.91,0.00049315,120]
[378820420,1755036645113,-428.86,0.00049315,120]
[378820421,1755036645123,-400.0,0.00049315,120]
[378820422,1755036645131,-400.0,0.00049315,120]
[378820423,1755036645141,-400.0,0.00049315,120]
[378820424,1755036645150,-400.0,0.00049315,120]
[378820425,1755036645159,-400.0,0.00049315,120]
[378820426,1755036645169,-976.74,0.00049315,120]
[378820427,1755036645178,-400.0,0.00049315,120]
[378820428,1755036645188,-587.74,0.00049315,120]
[378820429,1755036645197,-400.0,0.00049315,120]
[378820430,1755036645207,-400.0,0.00049315,120]
[378820431,1755036645217,-400.0,0.00049315,120]
[378820432,1755036645227,-400.0,0.00049315,120]
[378820433,1755036645236,-500.0,0.00049315,120]
[378820434,1755036645246,-426.71,0.00049315,120]
[378820435,1755036645255,-500.0,0.00049315,120]
[378820436,1755036645264,-400.0,0.00049315,120]
[378820437,1755036645273,-500.0,0.00049315,120]
[378820438,1755036645283,-322.07,0.00049315,120]
[378820439,1755036645292,-400.0,0.00049315,120]
[378820440,1755036645301,-460.0,0.00049315,120]
[378820441,1755036645310,-499.01,0.00049315,120]
[378820442,1755036645320,-402.78179731,0.00049315,120]
[378820443,1755036645336,-400.0,0.00049315,120]
[378820444,1755036645346,-400.0,0.00049315,120]
[378820445,1755036645355,-400.0,0.00049315,120]
[378820446,1755036645364,-400.0,0.00049315,120]
[378820447,1755036645375,-400.0,0.00049315,120]
[378820448,1755036645384,-760.38,0.00049315,120]
[378820449,1755036645394,-428.22,0.00049315,120]
[378820450,1755036645406,-581.07,0.00049315,120]
[378820451,1755036645416,-400.0,0.00049315,120]
[378820452,1755036645426,-400.0,0.00049315,120]
[378820453,1755036645435,-400.0,0.00049315,120]
[378820454,1755036645445,-403.68,0.00049315,120]
[378820455,1755036645454,-400.0,0.00049315,120]
[378820456,1755036645464,-400.25,0.00049315,120]
[378820457,1755036645473,-400.0,0.00049315,120]
[378820458,1755036645482,-400.0,0.00049315,120]
[378820459,1755036645492,-400.0,0.00049315,120]
[378820460,1755036645502,-604.37,0.00049315,120]
[378820461,1755036645511,-400.0,0.00049315,120]
[378820462,1755036645520,-400.0,0.00049315,120]
[378820463,1755036645530,-400.0,0.00049315,120]
[378820464,1755036645539,-1067.63,0.00049315,120]
[378820465,1755036645548,-400.0,0.00049315,120]
[378820466,1755036645558,-400.0,0.00049315,120]
[378820467,1755036645567,-400.0,0.00049315,120]
[378820468,1755036645576,-400.0,0.00049315,120]
[378820469,1755036645587,-400.0,0.00049315,120]
[378820470,1755036645596,-400.0,0.00049315,120]
[378820471,1755036645605,-400.0,0.00049315,120]
[378820472,1755036645615,-425.58,0.00049315,120]
[378820473,1755036645624,-400.0,0.00049315,120]
[378820474,1755036645633,-608.42,0.00049315,120]
[378820475,1755036645643,-182.17124254,0.00049315,120]
[378820476,1755036645652,-400.0,0.00049315,120]
[378820477,1755036645662,-400.0,0.00049315,120]
[378820478,1755036645671,-460.0,0.00049315,120]
[378820479,1755036645681,-400.0,0.00049315,120]
[378820480,1755036645691,-400.0,0.00049315,120]
[378820481,1755036645700,-592.24,0.00049315,120]
[378820482,1755036645712,-400.0,0.00049315,120]
[378820483,1755036645725,-703.58,0.00049315,120]
[378820484,1755036645743,-400.0,0.00049315,120]
[378820485,1755036645752,-400.0,0.00049315,120]
[378820486,1755036645761,-400.0,0.00049315,30]
[378820487,1755036645771,-400.0,0.00049315,120]
[378820488,1755036645780,-822.03,0.00049315,120]
[378820489,1755036645789,-400.0,0.00049315,120]
[378820490,1755036645798,-400.0,0.00049315,120]
[378820491,1755036645808,-509.45,0.00049315,120]
[378820492,1755036645818,-400.0,0.00049315,120]
[378820493,1755036645827,-400.0,0.00049315,120]
[378820494,1755036645838,-539.42,0.00049315,120]
[378820495,1755036645853,-472.69134024,0.00049315,120]
[378820496,1755036645869,-400.0,0.00049315,120]
[378820497,1755036645878,-196.29407315,0.00049315,120]
[378820498,1755036645888,-400.0,0.00049315,120]
[378820499,1755036645897,-448.03,0.00049315,120]
[378820500,1755036645906,-400.0,0.00049315,120]
[378820501,1755036645915,-646.44,0.00049315,120]
[378820502,1755036645924,-459.48,0.00049315,120]
[378820503,1755036645933,-400.0,0.00049315,120]
[378820504,1755036645943,-400.0,0.00049315,120]
[378820505,1755036645952,-400.0,0.00049315,120]
[378820506,1755036645961,-546.56,0.00049315,120]
[378820508,1755036645970,-400.0,0.00049315,120]
[378820509,1755036645979,-460.0,0.00049315,120]
[378820511,1755036645988,-400.0,0.00049315,120]
[378820512,1755036645997,-400.0,0.00049315,120]
[378820514,1755036646007,-400.0,0.00049315,120]
[378820516,1755036646016,-555.04,0.00049315,120]
[378820517,1755036646025,-400.0,0.00049315,120]
[378820518,1755036646034,-400.0,0.00049315,120]
[378820520,1755036646043,-400.0,0.00049315,120]
[378820521,1755036646053,-400.0,0.00049315,120]
[378820522,1755036646062,-947.18,0.00049315,120]
[378820523,1755036646071,-400.0,0.00049315,120]
[378820524,1755036646081,-460.0,0.00049315,120]
[378820525,1755036646090,-703.05,0.00049315,120]
[378820526,1755036646100,-400.0,0.00049315,120]
[378820527,1755036646109,-445.55,0.00049315,120]
[378820528,1755036646118,-400.0,0.00049315,120]
[378820529,1755036646128,-400.0,0.00049315,120]
[378820530,1755036646137,-400.0,0.00049315,120]
[378820531,1755036646148,-748.74,0.00049315,120]
[378820532,1755036646157,-600.89,0.00049315,120]
[378820533,1755036646166,-400.0,0.00049315,120]
[378820534,1755036646176,-400.0,0.00049315,120]
[378820535,1755036646185,-400.0,0.00049315,120]
[378820536,1755036646194,-400.0,0.00049315,120]
[378820537,1755036646204,-400.0,0.00049315,120]
[378820538,1755036646213,-400.0,0.00049315,120]
[378820539,1755036646222,-400.0,0.00049315,120]
[378820540,1755036646232,-487.34,0.00049315,120]
[378820541,1755036646241,-400.0,0.00049315,120]
[378820542,1755036646251,-400.0,0.00049315,120]
[378820543,1755036646260,-400.0,0.00049315,120]
[378820544,1755036646270,-400.0,0.00049315,120]
[378820545,1755036646280,-426.63,0.00049315,120]
[378820546,1755036646289,-601.25,0.00049315,120]
[378820547,1755036646299,-530.75,0.00049315,120]
[378820548,1755036646308,-400.0,0.00049315,120]
[378820549,1755036646318,-400.0,0.00049315,120]
[378820550,1755036646333,-400.0,0.00049315,120]
[378820551,1755036646342,-207.342587,0.00049315,120]
[378820552,1755036646351,-402.17,0.00049315,120]
[378820553,1755036646361,-400.0,0.00049315,120]
[378820554,1755036646371,-400.0,0.00049315,120]
[378820555,1755036646381,-400.0,0.00049315,120]
[378820556,1755036646390,-400.0,0.00049315,120]
[378820557,1755036646400,-713.34,0.00049315,120]
[378820558,1755036646409,-839.88,0.00049315,120]
[378820559,1755036646419,-400.0,0.00049315,120]
[378820560,1755036646428,-586.81,0.00049315,120]
[378820561,1755036646437,-400.0,0.00049315,120]
[378820562,1755036646447,-416.92,0.00049315,120]
[378820563,1755036646456,-400.0,0.00049315,120]
[378820564,1755036646465,-400.0,0.00049315,120]
[378820565,1755036646474,-722.98,0.00049315,120]
[378820566,1755036646483,-400.0,0.00049315,120]
[378820567,1755036646492,-400.0,0.00049315,120]
[378820568,1755036646502,-543.13,0.00049315,120]
[378820569,1755036646511,-1161.16,0.00049315,120]
[378820570,1755036646520,-400.0,0.00049315,120]
[378820571,1755036646529,-400.0,0.00049315,120]
[378820572,1755036646538,-400.0,0.00049315,120]
[378820573,1755036646547,-380.61530776,0.00049315,120]
[378820574,1755036646557,-400.0,0.00049315,120]
[378820575,1755036646566,-400.0,0.00049315,120]
[378820576,1755036646575,-400.0,0.00049315,120]
[378820577,1755036646586,-825.99,0.00049315,120]
[378820578,1755036646596,-400.0,0.00049315,120]
[378820579,1755036646605,-400.0,0.00049315,120]
[378820580,1755036646615,-400.0,0.00049315,120]
[378820581,1755036646625,-401.19769578,0.00049315,120]
[378820582,1755036646634,-1385.86,0.00049315,120]
[378820583,1755036646644,-173.73449728,0.00049315,120]
[378820585,1755036647076,-226.26550272,0.00049315,120]
[378820586,1755036647086,-1147.18,0.00049315,120]
[378820587,1755036647095,-400.0,0.00049315,120]
[378820588,1755036647104,-484.06,0.00049315,120]
[378820589,1755036647113,-401.9,0.00049315,120]
[378820590,1755036647123,-427.0511806,0.00049315,120]
[378820591,1755036647132,-621.46,0.00049315,120]
[378820592,1755036647141,-400.0,0.00049315,120]
[378820593,1755036647150,-400.0,0.00049315,120]
[378820594,1755036647160,-400.0,0.00049315,120]
[378820595,1755036647170,-400.0,0.00049315,120]
[378820596,1755036647179,-400.0,0.00049315,120]
[378820597,1755036647188,-400.0,0.00049315,120]
[378820598,1755036647198,-400.0,0.00049315,120]
[378820599,1755036647207,-400.0,0.00049315,120]
[378820600,1755036647217,-511.6,0.00049315,120]
[378820601,1755036647226,-1304.24,0.00049315,120]
[378820602,1755036647235,-400.0,0.00049315,120]
[378820603,1755036647244,-400.0,0.00049315,120]
[378820604,1755036647253,-400.0,0.00049315,120]
[378820605,1755036647262,-400.0,0.00049315,120]
[378820606,1755036647271,-400.0,0.00049315,120]
[378820607,1755036647281,-400.0,0.00049315,120]
[378820608,1755036647290,-402.62104316,0.00049315,120]
[378820609,1755036647299,-400.0,0.00049315,120]
[378820610,1755036647308,-400.0,0.00049315,120]
[378820611,1755036647317,-460.0,0.00049315,120]
[378820612,1755036647329,-474.14,0.00049315,120]
[378820613,1755036647340,-400.0,0.00049315,120]
[378820614,1755036647349,-526.02,0.00049315,120]
[378820615,1755036647358,-504.04,0.00049315,30]
[378820616,1755036647367,-522.26629758,0.00049315,120]
[378820617,1755036647378,-400.0,0.00049315,120]
[378820618,1755036647387,-400.0,0.00049315,120]
[378820619,1755036647396,-400.0,0.00049315,120]
[378820620,1755036647406,-400.0,0.00049315,120]
[378820621,1755036647415,-400.0,0.00049315,120]
[378820622,1755036647424,-778.78,0.00049315,120]
[378820623,1755036647433,-400.0,0.00049315,120]
[378820624,1755036647442,-400.0,0.00049315,120]
[378820625,1755036647451,-404.22,0.00049315,120]
[378820626,1755036647462,-825.71,0.00049315,120]
[378820627,1755036647471,-400.0,0.00049315,120]
[378820628,1755036647480,-400.0,0.00049315,120]
[378820629,1755036647490,-400.0,0.00049315,120]
[378820630,1755036647725,-400.0,0.00049315,120]
[378820631,1755036647741,-400.0,0.00049315,120]
[378820632,1755036647751,-400.0,0.00049315,120]
[378820633,1755036647760,-400.0,0.00049315,120]
[378820634,1755036647769,-987.18,0.00049315,120]
[378820635,1755036647779,-400.0,0.00049315,120]
[378820636,1755036647788,-400.0,0.00049315,120]
[378820637,1755036647798,-400.0,0.00049315,120]
[378820638,1755036647807,-400.0,0.00049315,120]
[378820639,1755036647817,-400.0,0.00049315,120]
[378820640,1755036647826,-801.37,0.00049315,120]
[378820641,1755036647839,-400.0,0.00049315,120]
[378820642,1755036647848,-400.0,0.00049315,120]
[378820643,1755036647858,-400.0,0.00049315,120]
[378820644,1755036647868,-940.95,0.00049315,120]
[378820645,1755036647877,-400.0,0.00049315,120]
[378820646,1755036647887,-400.0,0.00049315,120]
[378820647,1755036647896,-400.0,0.00049315,120]
[378820648,1755036647910,-492.64,0.00049315,120]
[378820649,1755036647919,-488.23,0.00049315,120]
[378820650,1755036647928,-400.0,0.00049315,120]
[378820651,1755036647937,-400.0,0.00049315,120]
[378820652,1755036647947,-400.0,0.00049315,120]
[378820653,1755036647956,-400.0,0.00049315,120]
[378820654,1755036647966,-889.63,0.00049315,120]
[378820655,1755036647975,-454.56,0.00049315,120]
[378820656,1755036647984,-400.0,0.00049315,120]
[378820657,1755036647994,-400.0,0.00049315,120]
[378820658,1755036648003,-400.0,0.00049315,120]
[378820659,1755036648014,-473.76,0.00049315,120]
[378820660,1755036648023,-400.0,0.00049315,120]
[378820661,1755036648032,-400.0,0.00049315,120]
[378820662,1755036648042,-400.0,0.00049315,120]
[378820663,1755036648052,-400.0,0.00049315,120]
[378820664,1755036648061,-488.68,0.00049315,120]
[378820665,1755036648071,-690.93,0.00049315,120]
[378820666,1755036648080,-784.64,0.00049315,120]
[378820667,1755036648090,-400.0,0.00049315,120]
[378820668,1755036648100,-400.0,0.00049315,120]
[378820669,1755036648109,-400.0,0.00049315,120]
[378820670,1755036648119,-400.0,0.00049315,120]
[378820671,1755036648129,-400.0,0.00049315,120]
[378820672,1755036648140,-400.0,0.00049315,120]
[378820673,1755036648150,-300.97663145,0.00049315,120]
[378820674,1755036648160,-400.0,0.00049315,120]
[378820675,1755036648169,-400.0,0.00049315,120]
[378820676,1755036648179,-577.78,0.00049315,120]
[378820677,1755036648189,-657.59,0.00049315,120]
[378820678,1755036648199,-400.0,0.00049315,120]
[378820679,1755036648208,-416.66368185,0.00049315,120]
[378820680,1755036648218,-400.0,0.00049315,120]
[378820681,1755036648227,-400.0,0.00049315,120]
[378820682,1755036648237,-503.26,0.00049315,120]
[378820683,1755036648246,-402.40583626,0.00049315,120]
[378820684,1755036648256,-2000.0,0.00049315,30]
[378820685,1755036648265,-400.0,0.00049315,120]
[378820686,1755036648275,-400.0,0.00049315,120]
[378820687,1755036648284,-400.0,0.00049315,120]
[378820688,1755036648294,-400.0,0.00049315,120]
[378820689,1755036648304,-400.0,0.00049315,120]
[378820690,1755036648315,-400.0,0.00049315,120]
[378820691,1755036648328,-400.0,0.00049315,120]
[378820692,1755036648342,-400.0,0.00049315,120]
[378820693,1755036648352,-581.49,0.00049315,120]
[378820694,1755036648363,-400.0,0.00049315,120]
[378820695,1755036648375,-287.56803011,0.00049315,120]
[378820696,1755036648386,-400.0,0.00049315,120]
[378820697,1755036648396,-413.13,0.00049315,120]
[378820698,1755036648407,-400.0,0.00049315,120]
[378820699,1755036648418,-400.0,0.00049315,120]
[378820700,1755036648428,-400.0,0.00049315,120]
[378820701,1755036648438,-400.0,0.00049315,120]
[378820702,1755036648448,-400.0,0.00049315,120]
[378820703,1755036648458,-400.0,0.00049315,120]
[378820704,1755036648469,-400.0,0.00049315,120]
[378820705,1755036648479,-400.0,0.00049315,120]
[378820706,1755036648490,-400.0,0.00049315,120]
[378820707,1755036648500,-452.93,0.00049315,120]
[378820708,1755036648510,-517.69,0.00049315,120]
[378820709,1755036648520,-400.0,0.00049315,120]
[378820710,1755036648531,-400.0,0.00049315,120]
[378820711,1755036648541,-400.0,0.00049315,120]
[378820712,1755036648551,-400.0,0.00049315,120]
[378820713,1755036648561,-400.0,0.00049315,120]
[378820714,1755036648571,-400.0,0.00049315,120]
[378820715,1755036648585,-400.0,0.00049315,120]
[378820716,1755036648595,-400.0,0.00049315,120]
[378820717,1755036648605,-400.0,0.00049315,120]
[378820718,1755036648615,-400.0,0.00049315,120]
[378820719,1755036648624,-400.0,0.00049315,120]
[378820720,1755036648634,-400.0,0.00049315,120]
[378820721,1755036648644,-522.69287945,0.00049315,120]
[378820722,1755036648654,-400.0,0.00049315,120]
[378820723,1755036648663,-459.78,0.00049315,120]
[378820724,1755036648674,-400.0,0.00049315,120]
[378820725,1755036648684,-400.0,0.00049315,120]
[378820726,1755036648694,-400.0,0.00049315,120]
[378820727,1755036648703,-444.54,0.00049315,120]
[378820728,1755036648713,-504.54583861,0.00049315,120]
[378820729,1755036648723,-532.79,0.00049315,120]
[378820730,1755036648732,-412.3,0.00049315,120]
[378820731,1755036648742,-400.0,0.00049315,120]
[378820732,1755036648751,-500.0,0.00049315,120]
[378820733,1755036648760,-500.0,0.00049315,120]
[378820734,1755036648770,-500.0,0.00049315,120]
[378820735,1755036648779,-500.0,0.00049315,120]
[378820736,1755036648789,-400.0,0.00049315,120]
[378820737,1755036648799,-400.0,0.00049315,120]
[378820738,1755036648808,-400.0,0.00049315,120]
[378820739,1755036648817,-846.6,0.00049315,120]
[378820740,1755036648827,-400.0,0.00049315,120]
[378820741,1755036648839,-945.39,0.00049315,120]
[378820742,1755036648849,-400.0,0.00049315,120]
[378820743,1755036648859,-400.0,0.00049315,120]
[378820744,1755036648869,-400.0,0.00049315,120]
[378820745,1755036648879,-401.51254081,0.00049315,120]
[378820746,1755036648890,-400.0,0.00049315,120]
[378820747,1755036648900,-400.0,0.00049315,30]
[378820748,1755036648909,-400.0,0.00049315,120]
[378820749,1755036648919,-400.0,0.00049315,120]
[378820750,1755036648929,-400.0,0.00049315,120]
[378820751,1755036648939,-1017.35,0.00049315,120]
[378820752,1755036648948,-400.0,0.00049315,120]
[378820753,1755036648958,-518.97,0.00049315,120]
[378820754,1755036648967,-400.0,0.00049315,120]
[378820755,1755036648977,-400.0,0.00049315,120]